Cogmind - Beta 13 @@@ ROGUE MODE // 2024.04.22 @ 02:07:30 Player: Peregrine Result: Destroyed by JC-4ZI(R) with Subdweller Laser Performance ------------- Evolutions (0) 0 Regions Visited (2) 400 Robots Destroyed (25) 125 Value Destroyed (650) 650 Prototype IDs (0) 0 Alien Tech Used (0) 0 Bonus (0) 0 TOTAL SCORE: 1175 Bonus ------- None Cogmind --------- Core Integrity 0/250 Matter 291/300 Energy 250/250 System Corruption 1% Temperature Cool (6) Movement Rolling (95) Location -10/Subcaves Parts ------- > --- POWER (1) -------- Ion Engine > --- PROPULSION (2) --- Wheel Subdweller Monowheel > --- UTILITY (2) ------ Medium Storage Unit Targeting Computer > --- WEAPON (2) ------- Small Laser Subdweller Machine Gun > --- INVENTORY (10) --- Ion Engine Light Treads Light Treads Compact Wheel Visual Processing Unit Subdweller Optics Hacking Suite Medium Laser Peak State ------------ > --- POWER ------------ Light Ion Engine > --- PROPULSION ------- Aluminum Leg Aluminum Leg > --- UTILITY ---------- Small Storage Unit Improved Terrain Scanner > --- WEAPON ----------- Medium Laser Medium Laser > --- INVENTORY -------- Ion Engine Ion Engine Light Treads Light Treads Wheel Compact Wheel Improved Terrain Scanner Assault Rifle [Rating: 10] Favorites ----------- Power Ion Engine Engine Ion Engine Propulsion Aluminum Leg Leg Aluminum Leg Wheel Subdweller Monowheel Utility Medium Storage Unit Device Improved Terrain Scanner Storage Medium Storage Unit Processor Targeting Computer Weapon Medium Laser Energy Gun Medium Laser Ballistic Gun Assault Rifle Build | -11 -10 -10 ------- Run | Yrd Mat Sub Slots Evolved . | . . . Power . | . . . Propulsion . | . . . Utility . | . . . Weapon . | . . . Parts Attached 19 | 1 9 9 Power 3 | . 3 . Engine 3 | . 3 . Core . | . . . Reactor . | . . . Propulsion 7 | . 3 4 Treads . | . . . Leg 5 | . 3 2 Wheel 2 | . . 2 Hover . | . . . Flight . | . . . Utility 4 | 1 2 1 Device 2 | 1 1 . Storage 1 | . 1 . Processor 1 | . . 1 Hackware . | . . . Protection . | . . . Artifact . | . . . Weapon 5 | . 1 4 Energy Gun 2 | . . 2 Energy Cannon . | . . . Ballistic Gun 3 | . 1 2 Ballistic Cannon . | . . . Launcher . | . . . Special Weapon . | . . . Impact Weapon . | . . . Slashing Weapon . | . . . Piercing Weapon . | . . . Special Melee Weapon . | . . . Unidentified Prototypes . | . . . Parts Lost 4 | . 3 1 Power 1 | . 1 . Propulsion 1 | . 1 . Utility 2 | . 1 1 Weapon . | . . . Highest Loss Streak 2 | . 2 1 To Critical Strikes . | . . . Average Slot Usage (%) 98 | . 99 97 Engine 13 | . 13 14 Leg 23 | . 27 12 Wheel 4 | . . 14 Device 10 | . 13 . Storage 14 | . 14 14 Processor 3 | . . 11 Energy Gun 18 | . 19 15 Ballistic Gun 9 | . 8 12 Naked Turns . | . . . Heaviest Build 20 | 13 20 20 Greatest Support 30 | 20 20 30 Greatest Overweight (x) 1 | . 1 . Average Overweight (x) . | . . . Largest Inventory Capacity 10 | 8 10 10 Average Capacity 9 | 8 9 10 Most Carried 10 | 7 10 10 Average Carried 8 | 6 8 8 Final Capacity 10 | 8 10 10 Final Carried 10 | 7 10 8 Class Distribution -------------------- 60% | Scavenger-Mutant 39% | Mutant Dominant Class ---------------- Scavenger-Mutant | -10/Materials Scavenger-Mutant | -10/Subcaves Resources | -11 -10 -10 ----------- Run | Yrd Mat Sub Matter Collected 615 | 210 217 188 Remotely . | . . . Salvage Created 1012 | 33 732 247 Parts 64 | 7 37 20 Haulers Intercepted 1 | . 1 . Recyclers Shooed 2 | 1 1 . Parts Field Recycled . | . . . Retrieved Matter . | . . . Parts Self-Destructed 5 | . . 5 Prevented . | . . . Kills | -11 -10 -10 ------- Run | Yrd Mat Sub Combat Hostiles Destroyed 15 | . 12 3 Guns 14 | . 11 3 Classes Destroyed 8 | 1 6 1 Builder 2 | . 2 . Tunneler 2 | 2 . . Hauler 1 | . 1 . Recycler 1 | . 1 . Operator 3 | . 3 . Watcher 1 | . 1 . Grunt 12 | . 12 . Subdweller 3 | . . 3 Best Kill Streak 8 | 1 8 2 Combat Bots Only 2 | . 2 2 Max Kills in Single Turn 1 | 1 1 1 Gunslinging . | . . . Exploded . | . . . Melee . | . . . Uniques/NPCs Destroyed . | . . . Combat | -11 -10 -10 -------- Run | Yrd Mat Sub Hostile Shots Fired 93 | . 74 19 Missed 28 | . 24 4 Damage Taken 976 | . 619 357 Core 264 | . 155 109 Absorbed by Shields . | . . . Core Remaining (%) 100 | 100 . . Volleys Fired 113 | 7 68 38 Largest 2 | 2 2 2 Hottest 100 | 100 100 100 Shots Fired 216 | 14 132 70 Gun 216 | 14 132 70 Cannon . | . . . Launcher . | . . . Special . | . . . Kinetic 52 | . 21 31 Thermal 164 | 14 111 39 Explosive . | . . . Electromagnetic . | . . . Robot Hit Streak 21 | 3 10 21 Robot Miss Streak 4 | 2 4 1 Penetration Max . | . . . Secondary Targets 2 | . 1 1 Max Gunslinging Chain 1 | . 1 1 Shots Hit Robots 152 | 7 91 54 Core Hits 52 | 2 37 13 Critical Kills . | . . . Critical Parts Destroyed . | . . . Critical Strikes 5 | 1 4 . Burn 5 | 1 4 . Melee Attacks . | . . . Impact . | . . . Slashing . | . . . Piercing . | . . . Sneak Attacks . | . . . Combat Hostiles . | . . . Follow-up Attacks . | . . . Damage Inflicted 1870 | 89 1170 611 Guns 1867 | 89 1167 611 Cannons . | . . . Explosions . | . . . Melee . | . . . Ramming 3 | . 3 . Kinetic 446 | . 192 254 Thermal 1421 | 89 975 357 Explosive . | . . . Electromagnetic . | . . . Impact . | . . . Slashing . | . . . Piercing . | . . . Highest Corruption 1 | . 1 1 Average Corruption 1 | . 1 1 Corruption Purged . | . . . Corruption Blocked . | . . . Effects 13 | . 8 5 Message Errors 1 | . 1 . Matter Fused 4 | . 1 3 Energy Discharges 2 | . 1 1 Data Loss (minor) 4 | . 4 . Alerts 1 | . . 1 Weapon Failures 1 | . 1 . Overload Shots . | . . . Overflow Damage . | . . . Projectiles . | . . . Explosions . | . . . Melee . | . . . Knockbacks . | . . . Impact . | . . . Kinetic . | . . . Secondary . | . . . Self-Inflicted Damage . | . . . Shots . | . . . Rammed . | . . . Targets Rammed 1 | . 1 . Kicked 1 | . 1 . Crushed . | . . . Highest Temperature 426 | 117 426 2 Average Temperature 106 | 43 115 2 Received Heat Transfer 474 | . 366 108 Effects 6 | . 6 . Shutdowns 1 | . 1 . Energy Bleed 1 | . 1 . Interference 2 | . 2 . Matter Decay 1 | . 1 . Damage (minor) 1 | . 1 . Siege Activations . | . . . Robots Corrupted . | . . . Combat Hostiles . | . . . Parts Fried . | . . . Impact Corruptions . | . . . Robots Melted 1 | . 1 . Combat Hostiles 1 | . 1 . Parts Melted 11 | 1 8 2 Heat Transferred 4240 | 333 3182 725 Parts Sabotaged . | . . . Parts Stolen . | . . . Parts Stripped . | . . . Power Chain Reactions . | . . . Alert | -11 -10 -10 ------- Run | Yrd Mat Sub Peak Influence 190 | 10 190 . Initial 6 | . 6 . Average 66 | 5 72 . Maximum Alert Level . | . . . Low Security (%) 100 | 100 100 . Level 1 . | . . . Level 2 . | . . . Level 3 . | . . . Level 4 . | . . . Level 5 . | . . . High Security . | . . . Max Security . | . . . Squads Dispatched 4 | . 4 . Investigation . | . . . Extermination . | . . . Reinforcement 4 | . 4 . Assault . | . . . Garrison . | . . . Intercept . | . . . Searches Triggered . | . . . Construction Impeded . | . . . Haulers Reinforced . | . . . Active Scanning Responses . | . . . Cargo Convoy Interrupts . | . . . Stealth | -11 -10 -10 --------- Run | Yrd Mat Sub Distress Signals . | . . . Communications Jammed . | . . . Distress Signals . | . . . Times Spotted 25 | . 19 6 Peak Tracking Total 3 | . 3 2 Tactical Retreats . | . . . Traps | -11 -10 -10 ------- Run | Yrd Mat Sub Traps Triggered 1 | . 1 . Indirectly . | . . . Trap Hack Attempts . | . . . Triggered . | . . . Disarmed . | . . . Reprogrammed . | . . . Reused . | . . . Traps Extracted . | . . . Installed . | . . . Triggered . | . . . Machines | -11 -10 -10 ---------- Run | Yrd Mat Sub Machines Disabled . | . . . Max in Single Turn . | . . . Machines Repaired . | . . . Machines Dismantled . | . . . Machines Sabotaged . | . . . Overloaded Fab Kills . | . . . Hacking | -11 -10 -10 --------- Run | Yrd Mat Sub Machines Accessed . | . . . Terminals . | . . . Fabricators . | . . . Repair Stations . | . . . Recycling Units . | . . . Scanalyzers . | . . . Garrison Access . | . . . Total Hacks . | . . . Successful . | . . . Failed . | . . . Catastrophic . | . . . Database Lockouts . | . . . Manual . | . . . Terminals . | . . . Fabricators . | . . . Repair Stations . | . . . Recycling Units . | . . . Scanalyzers . | . . . Garrison Access . | . . . Terminal Hacks . | . . . Fabricator Hacks . | . . . Repair Station Hacks . | . . . Recycling Unit Hacks . | . . . Scanalyzer . | . . . Garrison Access Hacks . | . . . Unauthorized Hacks . | . . . Terminals . | . . . Fabricators . | . . . Repair Stations . | . . . Recycling Units . | . . . Scanalyzers . | . . . Garrison Access . | . . . Data Cores Recovered . | . . . Used . | . . . Hacking Detections . | . . . Full Trace Events . | . . . Feedback Events . | . . . Feedback Blocked . | . . . Robot Schematics Acquired . | . . . Robots Built . | . . . Authchips . | . . . Time . | . . . Total Robot Build Rating . | . . . Part Schematics Acquired . | . . . Parts Built . | . . . Authchips . | . . . Time . | . . . Total Part Build Rating . | . . . Parts Repaired . | . . . Time . | . . . Parts Recycled . | . . . Recycled Matter . | . . . Retrieved Matter . | . . . Retrieved Components . | . . . Parts Scanalyzed . | . . . Part Schematics Acquired . | . . . Parts Damaged . | . . . Bothacking | -11 -10 -10 ------------ Run | Yrd Mat Sub Used RIF Installer . | . . . Robots Hacked . | . . . Non-combat . | . . . Combat . | . . . Robot Hacks Applied . | . . . Relay Couplers Released . | . . . Fabnet Peak Effective % . | . . . Robots Rewired . | . . . Allies Hacked . | . . . Hacks Repelled . | . . . Allies | -11 -10 -10 -------- Run | Yrd Mat Sub Total Allies . | . . . Largest Group . | . . . Highest-Rated Group . | . . . Highest-Rated Ally . | . . . Total Orders . | . . . Ally Attacks . | . . . Total Damage . | . . . Kills . | . . . Allies Corrupted . | . . . Allies Melted . | . . . Intel | -11 -10 -10 ------- Run | Yrd Mat Sub Robot Analysis Total . | . . . Derelict Logs Recovered . | . . . Drone Launches . | . . . Drone Recoveries . | . . . Exploration | -11 -10 -10 ------------- Run | Yrd Mat Sub Turns Passed 1897 | 120 1296 481 Spaces Moved 704 | 58 324 322 Core . | . . . Treads . | . . . Legs 514 | 58 324 132 Wheels 190 | . . 190 Hover . | . . . Flight . | . . . Fastest Speed 95 | 120 120 95 Average Speed 113 | 120 121 105 Slowest Speed 190 | 120 190 120 Overloaded Moves . | . . . Propulsion Burnouts . | . . . Robots Hopped . | . . . Cave-ins Triggered . | . . . Exploration Rate (%) 23 | 4 49 16 Regions Visited 2 Branch Regions 1 Pre-discovered Areas . | . . . Known Exits Taken . | . . . Unknown Exits Taken 2 | 1 1 . Scrap Searched . | . . . Spaces Dug . | . . . Terrain Destroyed . | . . . Melee . | . . . Projectile . | . . . AOE . | . . . Terrain Rammed . | . . . Walls Destroyed . | . . . Machines Disabled . | . . . Actions | -11 -10 -10 --------- Run | Yrd Mat Sub Total 1582 | 94 1094 394 Wait 722 | 27 681 14 Move 702 | 57 323 322 Hop . | . . . Pick Up 14 | 2 8 4 Fast Attach 2 | . . 2 Attach 7 | 1 3 3 Detach . | . . . Swap 10 | . 6 4 Drop 11 | . 4 7 Fire 113 | 7 68 38 Melee . | . . . Ram . | . . . Kick 1 | . 1 . Crush . | . . . Escape Stasis . | . . . Rewire . | . . . Trap . | . . . Miscellaneous . | . . . Route ------- -11/Scrapyard -10/Materials (discovered 2 exits: [*Min] / [*Sub]) -10/Subcaves History --------- Turn | Location | Event 1 | -11/Scrapyard | Discovered new exit (range 3) 121 | -11/Scrapyard | Entered Materials 303 | -10/Materials | Build established: Mutant 314 | -10/Materials | Discovered new exit (range 9) 859 | -10/Materials | Discovered new exit (range 10) 910 | -10/Materials | Build established: Scavenger-Mutant 987 | -10/Materials | Core integrity fell below 50% 1417 | -10/Materials | Entered Subcaves 1421 | -10/Subcaves | Ambushed by Subdwellers from Twisted Machinery 1433 | -10/Subcaves | Core integrity fell below 20% 1437 | -10/Subcaves | Shifting Twisted Machinery released Sub. Laser 1454 | -10/Subcaves | Shifting Twisted Machinery released Spk. Treads 1898 | -10/Subcaves | Destroyed by JC-4ZI(R) with Subdweller Laser Last Messages --------------- 01511_ Subatomizers dissect the Sub. Monowheel. 01587_ System corrupted: Energy discharge (-62). 01627_ XW-02D(R) destroyed. 01630_ Acquired 26 matter. 01634_ Acquired Sub. Optics. 01637_ System corrupted: Matter fused (-6). 01637_ Dropped Aluminum Leg. 01638_ Acquired Sub. Monowheel. 01718_ RZ-H3A(R) destroyed. 01745_ GQ-ZUW(R) destroyed. 01769_ GE-2DB(R) destroyed. 01772_ Acquired 92 matter. 01776_ Acquired Sub. Machine Gun. 01779_ Dropped Assault Rifle. 01781_ Acquired 12 matter. 01796_ Subatomizers dissect the Sub. Monowheel. 01805_ Acquired 4 matter. 01807_ Subatomizers dissect the Sub. Monowheel. 01821_ System corrupted: IFF burst signal emitted. 01886_ System corrupted: Matter fused (-7). Map ----- +----------------------------------------------------+ | ?????????????????????????????????????????????????? | | ?????????????????????????????????????????????????? | | ?????????????????????????????????????????????????? | | ?????????????????????????????????????????????????? | | ?????????????????????????????????????????????????? | | ?????????????????????????????????????????????????? | | ?????????????????????????????????????????????????? | | ?????????????????????##??????????????????????????? | | ??????????? ?????????# ??????????????????????????? | | ?????????? ##?#####?? ??????????????????????????? | | ?????????? ### # #?? ??????????????????????????? | | ????????? ??? ??????????????????????????? | | ?????##?# ? ##?? ??????????????????????????? | | ?????? # ??# ## #?? ####??????????????????????? | | ??????# #?## ## ??? ##?????????????????????? | | ????### ### ## #???# #?????????????????????? | | #??## " # ## ##### #?????????????????????? | | #### "" ## #?????????????????????? | | " # #??????????????????????? | | "" ##### ##?????????????????????? | | ## ###??# #?????????????????????? | | ?######????# ##????????????????????? | | ??????????# ### ##???????????????????? | | ??????????# #####?# #???????????????????? | | ??????????## #?????# ##??????????????????? | | ???????????## #????## @ #??????????????????? | | ????????????# ????# RR######??????????????????? | | ????????????#####????## #???????????????????????? | | ??????????????????????# ######???????##?????????? | | ????????????????????### ##????? #?????????? | | ????????????????????# ##### ### ????? | | ???????????????????## ???? | | ??????????????????## ### ???? | | ??????????????????# #?## ???? | | ??????????????????# ##??# ## ##### ???????? | | ??????????????????## #???## #??###????????????? | | ???????????????????## ###???? #?????????????????? | | ????????????????????##??????? ?????????????????? | | ???????????????????????????? #????????????????? | | ???????????????????????????? ##????????????????? | | ??????????????????????????? ##?????????????????? | | ??????????????????????????? #???????????????????? | | ?????????????????????????? ????????????????????? | | ?????????????????????????? ????????????????????? | | ????????????????????????? ????????????????????? | | ????????????????????????? ????????????????????? | | ????????????????????????## ????????????????????? | | ?????????????????????????# ?????????????????????? | | ?????????????????????????? ?????????????????????? | | ?????????????????????????????????????????????????? | +----------------------------------------------------+ Best States ------------- Heat Dissipation 25 Energy Generation 10 Energy Capacity 250 Matter Stores 300 Matter Capacity 300 Sight Range 16 Terrain Scan Range 16 Terrain Scan Density 10 Evasion (%) 55 Targeting Accuracy 5 Item Schematics ----------------- None Robot Schematics ------------------ None Fabricated ------------ Nothing Alien Tech Used ----------------- None Achievements -------------- None Challenges ------------ None Game ------ Seed DataGravmagCoupler Manual? 0 Play Time 00:13:22 Cumulative 86.8 hours Start 2024.04.22 @ 01:57:41 End 2024.04.22 @ 02:07:30 Sessions 1 Manual Loads 0 Difficulty Rogue Special Mode None Game No. 103 Rogue 88 Adventurer 15 Explorer 0 Win Type - Total 1 Types 0/0/1/0/0/0/0/0/0 Lore% 33 Gallery% 60 Achievement% 47 Wizard Run 0 Options --------- Layout 0 ASCII 0 Keyboard 0 Movement Mouse Keybinds 0 Fullscreen 2 Font 36/Smallcaps Map View 76x50 Zoom Use 0% Tactical HUD 1 Map Filters NONE Filters NONE Steam 1 RUN: 076b3eee-a953-4c8b-b050-b63c64947fd2